Cogmind - Beta 15 @@@ ROGUE MODE // 2025.09.27 @ 14:54:48 Player: Figgis Result: Self-destructed Performance ------------- Evolutions (5) 2500 Regions Visited (4) 800 Robots Destroyed (6) 30 Value Destroyed (240) 240 Prototype IDs (3) 60 Alien Tech Used (0) 0 Bonus (1291) 1291 TOTAL SCORE: 4921 Bonus ------- Pacifist 491 Registered with UFD 300 Met Optimus in HQ 500 Cogmind --------- Core Integrity 509/1000 Matter 235/300 Energy 365/365 System Corruption 0% Temperature Cool (0) Movement Flying (105) Ox1 Location -5/Factory Parts ------- > --- POWER (2) -------- Neutrino Core Micro Fission Core > --- PROPULSION (6) --- VTOL Module VTOL Module Cooled Nuclear Pulse Thruster > --- UTILITY (7) ------ Advanced Heat Sink Advanced Weight Redist. System Enhanced Optical Array Advanced Terrain Scan Processor Transmission Jammer Improved Thermal Shield > --- WEAPON (2) ------- KE Penetrator Axe > --- INVENTORY (5) ---- Light Nuclear Core Faulty Cooled Nuclear Pulse Thruster Faulty Cooled Nuclear Pulse Thruster Advanced Shield Generator Heavy Proton Missile Launcher Peak State ------------ > --- POWER ------------ Neutrino Core Micro Fission Core > --- PROPULSION ------- VTOL Module VTOL Module VTOL Module Makeshift Flight Unit Cooled Nuclear Pulse Thruster > --- UTILITY ---------- Advanced Heat Sink Advanced Weight Redist. System Enhanced Optical Array Advanced Terrain Scan Processor Transmission Jammer Cloaking Device Improved Thermal Shield > --- WEAPON ----------- KE Penetrator Axe > --- INVENTORY -------- Light Nuclear Core Cooled Nuclear Pulse Thruster Cooled Nuclear Pulse Thruster Advanced Shield Generator Heavy Proton Missile Launcher [Rating: 73] Favorites ----------- Power Ion Engine Engine Ion Engine Power Core Light Nuclear Core Propulsion Aluminum Leg Leg Aluminum Leg Flight Unit VTOL Module Utility Improved Terrain Scanner Device Improved Terrain Scanner Storage Small Storage Unit Processor Advanced Terrain Scan Processor Protection Improved Utility Shielding Weapon Heavy Plasma Cannon Energy Cannon Heavy Plasma Cannon Ballistic Gun Gauss Rifle Ballistic Cannon Heavy Flak Cannon Slashing Weapon Axe Build | -11 -10 -10 -7 -5 ------- Run | Yrd Mat Sub Scr Fac Slots Evolved 10 | . . . . 10 Power 1 | . . . . 1 Propulsion 4 | . . . . 4 Utility 5 | . . . . 5 Weapon . | . . . . . Parts Attached 50 | 3 3 . 11 33 Power 11 | . 1 . 3 7 Engine 6 | . 1 . 3 2 Core 5 | . . . . 5 Reactor . | . . . . . Propulsion 13 | 2 . . 3 8 Treads . | . . . . . Leg 6 | 2 . . 3 1 Wheel . | . . . . . Hover . | . . . . . Flight 7 | . . . . 7 Utility 15 | . 1 . 2 12 Device 10 | . . . 1 9 Storage 2 | . 1 . 1 . Processor 2 | . . . . 2 Hackware . | . . . . . Protection 1 | . . . . 1 Artifact . | . . . . . Weapon 11 | 1 1 . 3 6 Energy Gun . | . . . . . Energy Cannon 2 | . 1 . 1 . Ballistic Gun 6 | 1 . . 2 3 Ballistic Cannon 1 | . . . . 1 Launcher . | . . . . . Special Weapon . | . . . . . Impact Weapon . | . . . . . Slashing Weapon 2 | . . . . 2 Piercing Weapon . | . . . . . Special Melee Weapon . | . . . . . Unidentified Prototypes 3 | . . . . 3 Parts Lost 21 | . . . . 21 Power 3 | . . . . 3 Propulsion 7 | . . . . 7 Utility 5 | . . . . 5 Weapon 6 | . . . . 6 Highest Loss Streak 15 | . . . . 15 To Critical Strikes . | . . . . . Average Backups 8 | 2 4 6 9 7 Power 1 | 1 1 1 1 3 Propulsion . | . . . . 1 Utility 2 | . . 1 3 . Weapon 3 | 1 2 4 3 2 Tool/Special . | . . . . . Unused Backups 16 | . . . 12 4 Power 3 | . . . 2 1 Propulsion 1 | . . . . 1 Utility 2 | . . . 2 . Weapon 9 | . . . 7 2 Tool/Special 1 | . . . 1 . Average Slot Usage (%) 92 | . 71 85 99 75 Engine 11 | . 9 14 14 3 Leg 24 | . 28 28 28 10 Flight 2 | . . . . 12 Device 13 | . . . 13 20 Storage 11 | . 9 14 14 2 Processor 1 | . . . . 6 Energy Cannon 11 | . 10 14 14 2 Ballistic Gun 12 | . 14 14 14 5 Peak Build Rating 73 | 3 6 7 30 73 Average Rating 26 | 1 5 6 20 57 On Entrance 9 | . 3 6 7 29 Naked Turns . | . . . . . Heaviest Build 60 | 1 12 12 45 60 Greatest Support 56 | 3 20 20 39 56 Greatest Overweight (x) 12 | . 1 . 1 12 Average Overweight (x) . | . . . . . Largest Inventory Capacity 15 | 5 8 8 15 15 Average Capacity 10 | 5 7 8 11 9 Most Carried 15 | 5 5 7 15 14 Average Carried 9 | 3 4 6 10 7 Final Capacity 15 | 5 8 8 15 5 Final Carried 15 | 5 4 7 15 5 Class Distribution -------------------- 79% | Mutant 9% | Scavenger-Sprinter 9% | Derelict-Mutant Dominant Class ---------------- Mutant | -10/Materials Mutant | -10/Subcaves Mutant | -7/Scraptown Scavenger-Sprinter | -5/Factory Resources | -11 -10 -10 -7 -5 ----------- Run | Yrd Mat Sub Scr Fac Matter Collected 843 | 230 . 32 90 491 Remotely . | . . . . . Salvage Created 324 | . . . . 324 Parts 15 | . . . . 15 Haulers Intercepted . | . . . . . Recyclers Shooed 2 | . . . . 2 Parts Field Recycled . | . . . . . Retrieved Matter . | . . . . . Parts Self-Destructed . | . . . . . Prevented . | . . . . . Kills | -11 -10 -10 -7 -5 ------- Run | Yrd Mat Sub Scr Fac Combat Hostiles Destroyed 5 | . . . . 5 Melee 2 | . . . . 2 Cannons 3 | . . . . 3 Classes Destroyed 4 | . . . . 4 Recycler 1 | . . . . 1 Swarmer 3 | . . . . 3 Sentry 1 | . . . . 1 Behemoth 1 | . . . . 1 Best Kill Streak 4 | . . . . 4 Combat Bots Only 3 | . . . . 3 Max Kills in Single Turn 1 | . . . . 1 Gunslinging . | . . . . . Exploded . | . . . . . Melee 1 | . . . . 1 Uniques/NPCs Destroyed . | . . . . . Combat | -11 -10 -10 -7 -5 -------- Run | Yrd Mat Sub Scr Fac Hostile Shots Fired 192 | . 1 2 . 189 Missed 58 | . 1 1 . 56 Hits 134 | . . 1 . 133 Projectile 134 | . . 1 . 133 AOE 1 | . . 1 . . Critical Strikes 4 | . . . . 4 Damage Taken 2487 | . . 77 . 2410 Core 491 | . . . . 491 Absorbed by Shields . | . . . . . Redirected to Shielding 51 | . . . . 51 Ignored by Resistances 323 | . . . . 323 Regen/Repaired (Parts) 13 | . . . . 13 Core Remaining (%) 100 | 100 . . 100 . Volleys Fired 36 | . 1 1 . 34 Largest 2 | . 2 2 . 2 Hottest 120 | . 80 80 . 120 Shots Fired 59 | . 2 2 . 55 Gun 46 | . 1 1 . 44 Cannon 13 | . 1 1 . 11 Launcher . | . . . . . Special . | . . . . . Kinetic 51 | . 1 1 . 49 Thermal 8 | . 1 1 . 6 Explosive . | . . . . . Electromagnetic . | . . . . . Robot Hit Streak 8 | . . 2 . 8 Robot Miss Streak 3 | . 2 . . 3 Penetration Max 1 | . . . . 1 Secondary Targets . | . . . . . Shots Hit Robots 40 | . . 2 . 38 Core Hits 14 | . . . . 14 Critical Kills . | . . . . . Critical Parts Destroyed 2 | . . . . 2 Critical Strikes 3 | . . . . 3 Destroy 2 | . . . . 2 Sever 1 | . . . . 1 Melee Attacks 14 | . . . . 14 Impact . | . . . . . Slashing 14 | . . . . 14 Piercing . | . . . . . Sneak Attacks 2 | . . . . 2 Combat Hostiles . | . . . . . Follow-up Attacks . | . . . . . Damage Inflicted 1368 | . . 24 . 1344 Guns 729 | . . 7 . 722 Cannons 370 | . . 17 . 353 Explosions . | . . . . . Melee 269 | . . . . 269 Ramming . | . . . . . Kinetic 917 | . . 7 . 910 Thermal 182 | . . 17 . 165 Explosive . | . . . . . Electromagnetic . | . . . . . Impact . | . . . . . Slashing 269 | . . . . 269 Piercing . | . . . . . Highest Corruption . | . . . . . Average Corruption . | . . . . . Corruption Purged . | . . . . . Corruption Blocked . | . . . . . Overload Shots . | . . . . . Overflow Damage 68 | . . . . 68 Projectiles . | . . . . . Explosions . | . . . . . Melee 68 | . . . . 68 Knockbacks . | . . . . . Impact . | . . . . . Kinetic . | . . . . . Secondary . | . . . . . Self-Inflicted Damage . | . . . . . Shots . | . . . . . Rammed . | . . . . . Targets Rammed . | . . . . . Kicked . | . . . . . Crushed . | . . . . . Highest Temperature 282 | . 40 . . 282 Average Temperature 148 | . 20 . . 159 Received Heat Transfer 345 | . . 6 . 339 Effects 1 | . . . . 1 Energy Bleed 1 | . . . . 1 Siege Activations . | . . . . . Martial Activations . | . . . . . Shielding Activations . | . . . . . Robots Disrupted . | . . . . . Combat Hostiles . | . . . . . Robots Corrupted . | . . . . . Combat Hostiles . | . . . . . Parts Fried . | . . . . . Impact Corruptions . | . . . . . Robots Melted . | . . . . . Combat Hostiles . | . . . . . Parts Melted . | . . . . . Heat Transferred 287 | . . 37 . 250 Parts Sabotaged . | . . . . . Parts Stolen . | . . . . . Parts Stripped . | . . . . . Power Chain Reactions . | . . . . . Alert | -11 -10 -10 -7 -5 ------- Run | Yrd Mat Sub Scr Fac Maximum Alert Level . | . . . . . Low Security (%) 100 | 100 100 . . 100 Level 1 . | . . . . . Level 2 . | . . . . . Level 3 . | . . . . . Level 4 . | . . . . . Level 5 . | . . . . . High Security . | . . . . . Max Security . | . . . . . Peak Influence 86 | . . . . 86 Initial . | . . . . . Average 6 | . . . . 7 Influence Increases 273 | . . . . 273 Destroy 0b10 Robot/C 100 | . . . . 100 Destroy 0b10 Robot/NC 5 | . . . . 5 Destroy Leader 30 | . . . . 30 Successful Hack 24 | . . . . 24 Disable Machine 15 | . . . . 15 Destroy Structure 24 | . . . . 24 Partial Spotted 30 | . . . . 30 Lose Combat Pursuer 45 | . . . . 45 Influence Decreases 263 | . . . . 263 Time Decay 118 | . . . . 118 Lost Part 145 | . . . . 145 Squads Dispatched 3 | . . . . 3 Investigation 2 | . . . . 2 Extermination 1 | . . . . 1 Reinforcement . | . . . . . Assault . | . . . . . Garrison . | . . . . . Intercept . | . . . . . Searches Triggered . | . . . . . Construction Impeded . | . . . . . Haulers Reinforced . | . . . . . Active Scanning Responses . | . . . . . Cargo Convoy Interrupts . | . . . . . Stealth | -11 -10 -10 -7 -5 --------- Run | Yrd Mat Sub Scr Fac Distress Signals . | . . . . . Communications Jammed 3 | . . . . 3 Distress Signals 3 | . . . . 3 Times Spotted 23 | . 3 3 . 17 Peak Tracking Total 7 | . 2 2 . 7 Tactical Retreats 3 | . . . . 3 Traps | -11 -10 -10 -7 -5 ------- Run | Yrd Mat Sub Scr Fac Traps Triggered 1 | . . . . 1 Indirectly . | . . . . . Trap Hack Attempts . | . . . . . Triggered . | . . . . . Disarmed . | . . . . . Reprogrammed . | . . . . . Reused . | . . . . . Traps Extracted . | . . . . . Installed . | . . . . . Triggered . | . . . . . Machines | -11 -10 -10 -7 -5 ---------- Run | Yrd Mat Sub Scr Fac Machines Disabled 1 | . . . . 1 Max in Single Turn 1 | . . . . 1 Machines Repaired . | . . . . . Machines Dismantled . | . . . . . Machines Sabotaged . | . . . . . Overloaded Fab Kills . | . . . . . Hacking | -11 -10 -10 -7 -5 --------- Run | Yrd Mat Sub Scr Fac Machines Accessed 8 | . 1 1 1 5 Terminals 3 | . 1 . . 2 Fabricators . | . . . . . Repair Stations 1 | . . . . 1 Recycling Units 1 | . . . . 1 Scanalyzers . | . . . . . Garrison Access 1 | . . . . 1 Total Hacks 22 | . 2 5 4 11 Successful 15 | . 1 5 4 5 Failed 7 | . 1 . . 6 Catastrophic . | . . . . . Database Lockouts . | . . . . . Manual 9 | . 2 . . 7 Terminals 8 | . 2 . . 6 Fabricators . | . . . . . Repair Stations 2 | . . . . 2 Recycling Units 1 | . . . . 1 Scanalyzers . | . . . . . Garrison Access 2 | . . . . 2 Terminal Hacks 10 | . 1 5 4 . Record 10 | . 1 5 4 . Fabricator Hacks . | . . . . . Repair Station Hacks 2 | . . . . 2 Scan Component 1 | . . . . 1 Repair 1 | . . . . 1 Recycling Unit Hacks . | . . . . . Scanalyzer . | . . . . . Garrison Access Hacks . | . . . . . Unauthorized Hacks 3 | . . . . 3 Terminals 2 | . . . . 2 Botnet 2 | . . . . 2 Fabricators . | . . . . . Repair Stations . | . . . . . Recycling Units 1 | . . . . 1 Fedlink 1 | . . . . 1 Scanalyzers . | . . . . . Garrison Access . | . . . . . Data Cores Recovered . | . . . . . Used . | . . . . . Hacking Detections 5 | . 1 . . 4 Full Trace Events 1 | . . . . 1 Feedback Events . | . . . . . Feedback Blocked . | . . . . . Robot Schematics Acquired . | . . . . . Robots Built . | . . . . . Authchips . | . . . . . Time . | . . . . . Total Robot Build Rating . | . . . . . Part Schematics Acquired . | . . . . . Parts Built . | . . . . . Authchips . | . . . . . Time . | . . . . . Total Part Build Rating . | . . . . . Parts Repaired 1 | . . . . 1 Time 32 | . . . . 32 Parts Recycled . | . . . . . Recycled Matter . | . . . . . Retrieved Matter . | . . . . . Retrieved Components . | . . . . . Parts Scanalyzed . | . . . . . Part Schematics Acquired . | . . . . . Parts Damaged . | . . . . . Bothacking | -11 -10 -10 -7 -5 ------------ Run | Yrd Mat Sub Scr Fac Used RIF Installer . | . . . . . Robots Hacked . | . . . . . Non-combat . | . . . . . Combat . | . . . . . Robot Hacks Applied . | . . . . . Relay Couplers Released . | . . . . . Fabnet Peak Effective % . | . . . . . Robots Rewired . | . . . . . Allies Hacked . | . . . . . Hacks Repelled . | . . . . . Allies | -11 -10 -10 -7 -5 -------- Run | Yrd Mat Sub Scr Fac Total Allies . | . . . . . Largest Group . | . . . . . Highest-Rated Group . | . . . . . Highest-Rated Ally . | . . . . . Total Orders . | . . . . . Ally Attacks . | . . . . . Total Damage . | . . . . . Kills . | . . . . . Allies Corrupted . | . . . . . Allies Melted . | . . . . . Intel | -11 -10 -10 -7 -5 ------- Run | Yrd Mat Sub Scr Fac Active Infowar (turns) 3684 | . . . 2825 859 Optics 249 | . . . . 249 Terrain 3263 | . . . 2825 438 Cloaking 26 | . . . . 26 Jamming 853 | . . . . 853 Robot Analysis Total . | . . . . . Derelict Logs Recovered 1 | . . . 1 . Drone Launches . | . . . . . Drone Recoveries . | . . . . . Exploration | -11 -10 -10 -7 -5 ------------- Run | Yrd Mat Sub Scr Fac Turns Passed 4278 | 29 146 250 2952 901 Spaces Moved 2896 | 39 97 187 1387 1186 Core 90 | 39 46 . . 5 Treads . | . . . . . Legs 1798 | . 51 187 1387 173 Wheels . | . . . . . Hover . | . . . . . Flight 1008 | . . . . 1008 Fastest Speed 23 | 50 50 120 120 23 Average Speed 122 | 50 88 120 184 54 Slowest Speed 650 | 50 120 120 200 650 Overloaded Moves 22 | . . . . 22 Propulsion Burnouts . | . . . . . Robots Hopped 4 | . . . . 4 Potential Cave-ins . | . . . . . Cave-ins Triggered . | . . . . . Exploration Rate (%) 30 | 3 19 13 89 30 Regions Visited 4 Branch Regions 2 Pre-discovered Areas 1 | . . 1 . . Known Exits Taken . | . . . . . Unknown Exits Taken 4 | 1 1 1 1 . Scrap Searched 8 | . . 4 4 . Spaces Dug 8 | . . . . 8 Terrain Destroyed 14 | . . . . 14 Melee 6 | . . . . 6 Projectile 8 | . . . . 8 AOE . | . . . . . Terrain Rammed . | . . . . . Walls Destroyed . | . . . . . Machines Disabled . | . . . . . Actions | -11 -10 -10 -7 -5 --------- Run | Yrd Mat Sub Scr Fac Total 3555 | 46 154 211 1789 1355 Wait 461 | . 53 21 342 45 Move 2884 | 38 96 186 1386 1178 Hop 4 | . . . . 4 Pick Up 44 | 5 1 3 24 11 Fast Attach 22 | 3 1 . 2 16 Attach 21 | . 2 . 1 18 Detach 1 | . . . . 1 Swap 15 | . . . 9 6 Drop 32 | . . . 22 10 Fire 36 | . 1 1 . 34 Melee 14 | . . . . 14 Ram . | . . . . . Kick . | . . . . . Crush . | . . . . . Escape Stasis 18 | . . . . 18 Rewire 3 | . . . 3 . Trap . | . . . . . Miscellaneous . | . . . . . Route ------- -11/Scrapyard -10/Materials -10/Subcaves (discovered 4 exits: *Mat x2 / Rec / *Scr) -7/Scraptown (discovered 2 exits: *Fac x2) -5/Factory (discovered 5 exits: Fac x3 / *Upp / Ext) History --------- Turn | Location | Event 14 | -11/Scrapyard | Discovered new exit (range 15) 30 | -11/Scrapyard | Entered Materials 31 | -10/Materials | Met a group of wandering Federalists 120 | -10/Materials | Discovered new exit (range 7) 176 | -10/Materials | Entered Subcaves 177 | -10/Subcaves | Continued accompanying wandering Federalists (6) 177 | -10/Subcaves | Approached by a straggling Scientist 197 | -10/Subcaves | Discovered new exit (range 3) 198 | -10/Subcaves | Learned location of Zion (-7) 198 | -10/Subcaves | Met a Zionite searching for "candidates" 218 | -10/Subcaves | Ambushed by Subdweller buried in earth 256 | -10/Subcaves | Shifting Twisted Machinery released Battle Cannon 274 | -10/Subcaves | Shifting Twisted Machinery released Sub. Beam Cannon 304 | -10/Subcaves | Build established: Mutant 339 | -10/Subcaves | Visited Clippyterm 342 | -10/Subcaves | Identified exit to Materials 342 | -10/Subcaves | Identified exit to Recycling 342 | -10/Subcaves | Learned 40 Factory zone layouts 387 | -10/Subcaves | Wandering Federalist uncovered a shortcut to Scraptown 426 | -10/Subcaves | Entered Scraptown 722 | -7/Scraptown | Discovered new exit (range 13) 806 | -7/Scraptown | Scanned Subdweller tech in exchange for log data 831 | -7/Scraptown | Learned 12 Research zone layouts 880 | -7/Scraptown | Visited Fellowship of the Rings 918 | -7/Scraptown | Visited Spacefarers 1280 | -7/Scraptown | Visited Awakened 1308 | -7/Scraptown | Visited CPS Storage 1396 | -7/Scraptown | Visited Cyclists 1443 | -7/Scraptown | Visited Comm Corps 1720 | -7/Scraptown | Visited The Evicted 1817 | -7/Scraptown | Visited UFD Registry 1817 | -7/Scraptown | Registered with UFD as "Nukepod" 1863 | -7/Scraptown | Visited Junk Repository 1929 | -7/Scraptown | Visited A0-MCA Data Center 1940 | -7/Scraptown | Given a B- rating by A0-MCA 1982 | -7/Scraptown | Visited Curators Association 2534 | -7/Scraptown | Visited DA-N13 Charitable Foundation 2640 | -7/Scraptown | Found DCF Scrap (31 items) 2791 | -7/Scraptown | Visited Scrapoid Pod Storage 2802 | -7/Scraptown | Found Scrapoid Pod 2833 | -7/Scraptown | Visited Scrapoid Research Area 2921 | -7/Scraptown | Visited Observation Area 3194 | -7/Scraptown | Met Optimus 3194 | -7/Scraptown | Accepted into 0bPrime 3257 | -7/Scraptown | Visited Modified Component R&D 3368 | -7/Scraptown | Discovered new exit (range 5) 3378 | -7/Scraptown | Entered Factory 3378 | -5/Factory | Evolved 10 slots: Power x1, Propulsion x4, Utility x5 3379 | -5/Factory | Identified exit to Upper Caves 3379 | -5/Factory | Identified exit to Factory 3379 | -5/Factory | Identified exit to Extension 3682 | -5/Factory | Build established: Derelict-Mutant 3715 | -5/Factory | Spotted B-75 Beast 3844 | -5/Factory | Destroyed B-75 Beast 3858 | -5/Factory | Lost 15 parts (2p4n4u5w) 3931 | -5/Factory | Lost 3 parts (1p1n1w) 4091 | -5/Factory | Repaired VTOL Module 4195 | -5/Factory | Loaded intel: 8 recycling unit locations 4279 | -5/Factory | Self-destructed Last Messages --------------- 04201_ Acquired Lgt. Nuclear Core. 04210_ Acquired Adv. Weight Redist. System. 04218_ K-01 Serf cleans the Matter Pump. 04221_ Dropped Mak. Power Source. 04232_ Penetrated by Slug. 04236_ Slug penetrates Wall. 04243_ Cloaking Device destroyed. 04246_ VTOL Module destroyed. 04256_ U-05 Engineer builds a Wall. 04263_ C-30 ARC bursts open, deploying its payload. 04263_ H-66 Slayer unfolds itself. 04267_ Sneak attack on U-05 Engineer. 04267_ Destroyed Lgt. Ion Engine. 04271_ Penetrated by Slug. 04273_ Sneak attack on U-05 Engineer. 04273_ Destroyed Lgt. Ion Engine. 04273_ Destroyed Welding Torch. 04274_ U-05 Engineer distress signal jammed. 04274_ K-01 Serf collects debris. 04275_ Mak. Flight Unit destroyed. Map ----- +----------------------------------------------------+ | # # #??#[ """ """ | | """" # # #??# """ """ [ | | """" ###### #??# #### | | """" #?####+#### """ """ # | | ####### """" #?# ## """ """ # | | ???""## """" #?# ## """ """ # | | ???F"## """" #?# """ ## # | | ???""## ### """ !## """ """ # | | ? # """ ## """ """ # | | ? #####+######## # ## """ """ # | | ? """ ##??# # ##+###### # | | """ #???# +" """ """ # | | """ #???# """ """ #%" """ """ # | | #???# """ """ #" """ """ # | | #???# """ """ # # | | #???# # #### | | #???# # ###+####/###### | | #???# [ # ## ##### ## | | ####### #???###########g## #???# ## """"""" | | #?????#+#????????????## ## #???# ## """"""" | | ##?????????????????????#h#? #???# ## """"""" | | #???????????????########/##?#???# ## """"""" | | #???????????????# T gg # #???# ## | | #???????????????# # #???# ## | | #???????????????# # #???# ## | | #???????????????# @#?#???# ## | | ###?????????????###########/#####+################ | | + ????????????????# # """""" #??? | | # ????????????????# # """""" #??? | | # ????????????????# # """""" #??? | | # ????????????????# # """""" #??? | | # ????????????????# # #??? | | # ????????????????# # #??? | | ###????????????????# # #??? | | ## ????????????????# # #??? | | # ????????????????# #####+#####??? | | # ????????????????######+#########/### ###### | | + ????????????????????????????# | | ??? """" #????????????# #????????? ???????????? | | ??? ############## #?????????? ??????????? | | ??? ""T"" # # #???????????# ?????????? | | ??? """"" # # #??????????????????????? | | ???######### " " " " " # #??????????????????????? | | ??? #?# " " " " " # ##?????????????????????? | | ??? #?# " " " " " # ?????????????????????? | | ??? #?# " " " " " + ?????????????????????? | | ??? #?# " " " " " # ?????????????????????? | | ???######### " " " " " ###+?????????????????????? | | ??? + " " " " " # ?????????????????????? | | ???######### " " " " " # ?????????????????????? | +----------------------------------------------------+ Best States ------------- Heat Dissipation 59 Energy Generation 30 Energy Capacity 365 Matter Stores 300 Matter Capacity 300 Sight Range 22 Terrain Scan Range 16 Terrain Scan Density 210 Jamming Range 12 Cloak Strength 2 Additional Mass Support 9 Resistance: KI 25 Resistance: TH 25 Resistance: EM 25 Utility Shielding 66 Evasion (%) 64 Item Schematics ----------------- None Robot Schematics ------------------ None Fabricated ------------ Nothing Repaired ---------- VTOL Module | 48% | -5/Factory Alien Tech Used ----------------- None Achievements -------------- None Challenges ------------ None Game ------ Seed ProjectionPowerSword Manual? 0 Play Time 00:29:20 Cumulative 186.0 hours Start 2025.09.26 @ 19:51:06 End 2025.09.27 @ 14:54:48 Sessions 3 Manual Loads 0 Difficulty Rogue Special Mode None Game No. 295 Rogue 292 Adventurer 3 Explorer 0 Win Type - Total 1 Types 1/0/0/0/0/0/0/0/0/0 Lore% 63 Gallery% 59 Achievement% 46 Wizard Run 0 Options --------- Layout 0 ASCII 0 Keyboard 0 Movement Mouse Keybinds 0 Fullscreen 2 Font 18/SmallcapsGlow Map View 76x50 Zoom Use 0% Tactical HUD 1 Map Filters NONE Filters NONE Steam 1 RUN: ad111439-7051-42a8-8302-c984f8d06edf